fUST/lending_fUST_20250502
["ID","MTS","AMOUNT","RATE_DAILY","PERIOD"]
[359621842,1746189035410,-400.0,0.00019178,2]
[359621843,1746189035419,-615.87,0.00019178,2]
[359621844,1746189035429,-1567.91196617,0.00019178,2]
[359621845,1746189035448,-11828.32803383,0.00019178,2]
[359621846,1746189035457,-474.68,0.00019178,2]
[359621847,1746189035467,-190.20228099,0.00019178,2]
[359621848,1746189035480,-278.87757745,0.00019178,2]
[359621849,1746189035495,-448.08,0.00019178,2]
[359621850,1746189035505,-400.0,0.00019178,2]
[359621851,1746189035517,-500.0,0.00019178,2]
[359621852,1746189035527,-400.0,0.00019178,2]
[359621853,1746189035537,-400.0,0.00019178,2]
[359621854,1746189035547,-400.0,0.00019178,2]
[359621855,1746189035557,-400.0,0.00019178,2]
[359621856,1746189035610,-500.61399207,0.00019178,2]
[359621857,1746189035621,-526.71,0.00019178,2]
[359621858,1746189035630,-446.9,0.00019178,2]
[359621859,1746189035641,-1477.96,0.00019178,2]
[359621860,1746189035651,-400.0,0.00019178,2]
[359621861,1746189035660,-400.0,0.00019178,2]
[359621862,1746189035669,-2045.49,0.00019178,2]
[359621863,1746189035679,-1342.95,0.00019178,2]
[359621864,1746189035691,-400.0,0.00019178,2]
[359621865,1746189035701,-1038.22,0.00019178,2]
[359621866,1746189035712,-894.3,0.00019178,2]
[359621867,1746189035722,-400.0,0.00019178,2]
[359621868,1746189035733,-400.0,0.00019178,2]
[359621869,1746189035748,-759.21,0.00019178,2]
[359621870,1746189035760,-527.97,0.00019178,2]
[359621871,1746189035771,-500.0,0.00019178,2]
[359621872,1746189035783,-708.46,0.00019178,2]
[359621873,1746189035793,-400.0,0.00019178,2]
[359621874,1746189035803,-2269.91,0.00019178,2]
[359621875,1746189035813,-2021.3,0.00019178,2]
[359621876,1746189035824,-1297.34,0.00019178,2]
[359621877,1746189035835,-400.0,0.00019178,2]
[359621878,1746189035845,-400.0,0.00019178,2]
[359621879,1746189035855,-1792.72149742,0.00019178,2]
[359621908,1746189039780,-500.0,0.00018253,2]
[359621909,1746189039790,-500.0,0.00018253,2]
[359621910,1746189039800,-500.0,0.00018253,2]
[359621911,1746189039810,-500.0,0.00018253,2]
[359621912,1746189039820,-500.0,0.00018253,2]
[359621913,1746189039830,-500.0,0.00018253,2]
[359621914,1746189039841,-500.0,0.00018253,2]
[359621915,1746189039850,-500.0,0.00018253,2]
[359621916,1746189039860,-500.0,0.00018253,2]
[359621917,1746189039870,-500.0,0.00018253,2]
[359621918,1746189039880,-500.0,0.00018253,2]
[359621919,1746189039890,-500.0,0.00018253,2]
[359621920,1746189039900,-500.0,0.00018253,2]
[359621921,1746189039910,-500.0,0.00018253,2]
[359621922,1746189039920,-500.0,0.00018253,2]
[359621923,1746189039930,-500.0,0.00018253,2]
[359621924,1746189039940,-500.0,0.00018253,2]
[359621925,1746189039950,-500.0,0.00018253,2]
[359621927,1746189039961,-500.0,0.00018253,2]
[359621928,1746189039971,-500.0,0.00018253,2]
[359621929,1746189039980,-500.0,0.00018253,2]
[359621930,1746189039993,-500.0,0.00018253,2]
[359621931,1746189040003,-500.0,0.00018253,2]
[359621932,1746189040014,-550.8290135,0.00018253,2]
[359621933,1746189040024,-43.42850258,0.00019178,2]
[359621934,1746189040034,-400.0,0.00019178,2]
[359621935,1746189040045,-400.0,0.00019178,2]
[359621936,1746189040055,-400.0,0.00019178,2]
[359621937,1746189040066,-1037.51,0.00019178,2]
[359621938,1746189040076,-418.58879688,0.00019178,2]
[359621939,1746189040086,-458.13,0.00019178,2]
[359621940,1746189040096,-552.0,0.00019178,2]
[359621941,1746189040105,-500.0,0.00019178,2]
[359621942,1746189040115,-4838.31,0.00019178,2]
[359621943,1746189040125,-400.0,0.00019178,2]
[359621944,1746189040135,-883.25,0.00019178,2]
[359621945,1746189040144,-4238.87,0.00019178,2]
[359621946,1746189040153,-400.0,0.00019178,2]
[359621947,1746189040163,-538.69,0.00019178,2]
[359621948,1746189040173,-400.0,0.00019178,2]
[359621949,1746189040182,-401.53,0.00019178,2]
[359621950,1746189040192,-781.45,0.00019178,2]
[359621951,1746189040202,-400.0,0.00019178,2]
[359621952,1746189040211,-1785.89,0.00019178,2]
[359621953,1746189040221,-589.69,0.00019178,2]
[359621954,1746189040230,-1116.06,0.00019178,2]
[359621955,1746189040243,-486.3,0.00019178,2]
[359621956,1746189040253,-2242.22,0.00019178,2]
[359621957,1746189040263,-400.0,0.00019178,2]
[359621958,1746189040276,-400.0,0.00019178,2]
[359621959,1746189040286,-400.0,0.00019178,2]
[359621960,1746189040296,-400.0,0.00019178,2]
[359621961,1746189040305,-400.0,0.00019178,2]
[359621962,1746189040318,-2337.65,0.00019178,2]
[359621963,1746189040327,-400.0,0.00019178,2]
[359621964,1746189040337,-2016.62,0.00019178,2]
[359621965,1746189040347,-400.0,0.00019178,2]
[359621966,1746189040358,-667.02,0.00019178,2]
[359621967,1746189040369,-400.0,0.00019178,2]
[359621968,1746189040378,-475.96,0.00019178,2]
[359621969,1746189040388,-906.33,0.00019178,2]
[359621971,1746189040398,-581.79,0.00019178,2]
[359621972,1746189040408,-400.0,0.00019178,2]
[359621973,1746189040418,-411.78,0.00019178,2]
[359621974,1746189040428,-500.0,0.00019178,2]
[359621975,1746189040438,-400.0,0.00019178,2]
[359621977,1746189040448,-400.0,0.00019178,2]
[359621978,1746189040458,-400.0,0.00019178,2]
[359621979,1746189040467,-400.0,0.00019178,2]
[359621980,1746189040477,-1222.5,0.00019178,2]
[359621981,1746189040486,-400.0,0.00019178,2]
[359621982,1746189040499,-400.0,0.00019178,2]
[359621983,1746189040509,-400.0,0.00019178,2]
[359621984,1746189040519,-400.0,0.00019178,2]
[359621985,1746189040529,-500.0,0.00019178,2]
[359621986,1746189040538,-400.0,0.00019178,2]
[359621987,1746189040548,-745.75,0.00019178,2]
[359621988,1746189040558,-500.0,0.00019178,2]
[359621989,1746189040567,-500.0,0.00019178,2]
[359621990,1746189040577,-1788.85,0.00019178,2]
[359621991,1746189040587,-500.0,0.00019178,2]
[359621992,1746189040597,-500.0,0.00019178,2]
[359621993,1746189040607,-500.0,0.00019178,2]
[359621994,1746189040617,-393.96048728,0.00019178,2]
[359621995,1746189040628,-472.15,0.00019178,2]
[359621996,1746189040638,-1322.26,0.00019178,2]
[359621997,1746189040648,-400.0,0.00019178,2]
[359621998,1746189040658,-400.0,0.00019178,2]
[359621999,1746189040667,-500.0,0.00019178,2]
[359622001,1746189040677,-1985.53,0.00019178,2]
[359622003,1746189040687,-2250.14,0.00019178,2]
[359622005,1746189040696,-400.0,0.00019178,2]
[359622007,1746189040706,-1328.58,0.00019178,2]
[359622009,1746189040716,-921.29,0.00019178,2]
[359622011,1746189040726,-538.34,0.00019178,2]
[359622013,1746189040735,-457.53076727,0.00019178,2]
[359622015,1746189040747,-400.0,0.00019178,2]
[359622017,1746189040756,-1751.16,0.00019178,2]
[359622019,1746189040766,-500.0,0.00019178,2]
[359622021,1746189040776,-502.26,0.00019178,2]
[359622023,1746189040787,-2271.98,0.00019178,2]
[359622025,1746189040796,-400.0,0.00019178,2]
[359622027,1746189040806,-400.0,0.00019178,2]
[359622029,1746189040816,-5937.16,0.00019178,2]
[359622031,1746189040825,-2482.0,0.00019178,2]
[359622033,1746189040835,-2424.16,0.00019178,2]
[359622035,1746189040845,-400.0,0.00019178,2]
[359622037,1746189040854,-500.0,0.00019178,2]
[359622039,1746189040864,-684.99,0.00019178,2]
[359622041,1746189040874,-501.1,0.00019178,2]
[359622043,1746189040884,-400.0,0.00019178,2]
[359622045,1746189040894,-400.0,0.00019178,2]
[359622047,1746189040903,-502.8944996,0.00019178,2]
[359622049,1746189040913,-500.0,0.00019178,2]
[359622051,1746189040924,-400.0,0.00019178,2]
[359622053,1746189040934,-400.0,0.00019178,2]
[359622055,1746189040944,-1227.55,0.00019178,2]
[359622058,1746189040954,-443.60186557,0.00019178,2]
[359622059,1746189040964,-898.47,0.00019178,2]
[359622061,1746189040975,-4308.81,0.00019178,2]
[359622064,1746189040984,-400.0,0.00019178,2]
[359622066,1746189040996,-589.99,0.00019178,2]
[359622067,1746189041006,-500.0,0.00019178,2]
[359622069,1746189041016,-649.78,0.00019178,2]
[359622071,1746189041025,-500.0,0.00019178,2]
[359622073,1746189041035,-218.72506945,0.00019178,2]
[359622074,1746189041045,-500.0,0.00019178,2]
[359622075,1746189041054,-621.88,0.00019178,2]
[359622076,1746189041064,-400.0,0.00019178,2]
[359622077,1746189041075,-400.0,0.00019178,2]
[359622079,1746189041085,-536.94338367,0.00019178,2]
[359622081,1746189041096,-400.0,0.00019178,2]
[359622083,1746189041105,-1554.63,0.00019178,2]
[359622085,1746189041115,-400.0,0.00019178,2]
[359622087,1746189041125,-549.99,0.00019178,2]
[359622089,1746189041134,-2022.45,0.00019178,2]
[359622091,1746189041144,-1654.82,0.00019178,2]
[359622093,1746189041153,-400.0,0.00019178,2]
[359622095,1746189041163,-887.45,0.00019178,2]
[359622097,1746189041173,-400.0,0.00019178,2]
[359622099,1746189041183,-400.0,0.00019178,2]
[359622101,1746189041192,-400.0,0.00019178,2]
[359622103,1746189041202,-1613.86,0.00019178,2]
[359622105,1746189041212,-509.44,0.00019178,2]
[359622106,1746189041221,-500.0,0.00019178,2]
[359622107,1746189041231,-1452.32,0.00019178,2]
[359622108,1746189041243,-324.39601411,0.00019178,2]
[359622109,1746189041261,-75.60398589,0.00019178,2]
[359622110,1746189041277,-724.19,0.00019178,2]
[359622111,1746189041287,-558.02,0.00019178,2]
[359622112,1746189041297,-400.0,0.00019178,2]
[359622113,1746189041307,-400.0,0.00019178,2]
[359622114,1746189041317,-400.0,0.00019178,2]
[359622115,1746189041327,-400.0,0.00019178,2]
[359622116,1746189041336,-400.0,0.00019178,2]
[359622117,1746189041347,-400.0,0.00019178,2]
[359622118,1746189041357,-400.0,0.00019178,2]
[359622119,1746189041366,-400.0,0.00019178,2]
[359622120,1746189041376,-501.51,0.00019178,2]
[359622121,1746189041386,-400.0,0.00019178,2]
[359622122,1746189041396,-400.0,0.00019178,2]
[359622123,1746189041406,-400.0,0.00019178,2]
[359622124,1746189041417,-378.77653241,0.00019178,2]
[359622125,1746189041427,-768.56,0.00019178,2]
[359622126,1746189041438,-502.47,0.00019178,2]
[359622127,1746189041448,-400.0,0.00019178,2]
[359622128,1746189041458,-400.0,0.00019178,2]
[359622129,1746189041468,-400.0,0.00019178,2]
[359622130,1746189041478,-657.22,0.00019178,2]
[359622131,1746189041488,-978.78,0.00019178,2]
[359622132,1746189041501,-400.0,0.00019178,2]
[359622133,1746189041510,-400.0,0.00019178,2]
[359622134,1746189041520,-400.0,0.00019178,2]
[359622135,1746189041530,-400.0,0.00019178,2]
[359622136,1746189041540,-200.62106188,0.00019178,2]
[359622137,1746189041550,-400.0,0.00019178,2]
[359622138,1746189041560,-400.0,0.00019178,2]
[359622139,1746189041570,-12838.06,0.00019178,2]
[359622140,1746189041580,-193.120276,0.00019178,2]
[359622141,1746189041590,-267.12771172,0.00019213,2]
[359622142,1746189041600,-150.0,0.00019236,2]
[359622143,1746189041610,-267.12771172,0.00019282,2]
[359622144,1746189041620,-545.0,0.00019288,2]
[359622145,1746189041630,-267.12771172,0.00019352,2]
[359622146,1746189041640,-160.0,0.00019356,2]
[359622147,1746189041650,-160.0,0.00019356,2]
[359622148,1746189041660,-160.0,0.00019356,2]
[359622149,1746189041670,-155.35,0.00019452,2]
[359622150,1746189041680,-400.0,0.00019452,2]
[359622151,1746189041690,-400.0,0.00019452,2]
[359622152,1746189041700,-400.0,0.00019452,2]
[359622153,1746189041710,-400.0,0.00019452,2]
[359622154,1746189041720,-400.0,0.00019452,2]
[359622155,1746189041730,-400.0,0.00019452,2]
[359622156,1746189041740,-746.44,0.00019452,2]
[359622157,1746189041753,-400.0,0.00019452,2]
[359622158,1746189041763,-443.76,0.00019452,2]
[359622159,1746189041773,-311.56616406,0.00019452,2]
[359622160,1746189041784,-400.0,0.00019452,2]
[359622161,1746189041794,-400.0,0.00019452,2]
[359622162,1746189041804,-511.16039111,0.00019452,2]
[359622163,1746189041814,-400.0,0.00019452,2]
[359622164,1746189041824,-400.0,0.00019452,2]
[359622165,1746189041833,-400.0,0.00019452,2]
[359622166,1746189041843,-400.0,0.00019452,2]
[359622167,1746189041854,-400.0,0.00019452,2]
[359622168,1746189041863,-400.0,0.00019452,2]
[359622169,1746189041874,-400.0,0.00019452,2]
[359622170,1746189041886,-573.77,0.00019452,2]
[359622171,1746189041897,-400.0,0.00019452,2]
[359622172,1746189041907,-400.0,0.00019452,2]
[359622173,1746189041917,-400.0,0.00019452,2]
[359622174,1746189041929,-400.0,0.00019452,2]
[359622175,1746189041939,-400.0,0.00019452,2]
[359622176,1746189041950,-400.0,0.00019452,2]
[359622177,1746189041960,-400.0,0.00019452,2]
[359622178,1746189041971,-400.0,0.00019452,2]
[359622179,1746189041982,-428.89,0.00019452,2]
[359622180,1746189041996,-400.0,0.00019452,2]
[359622181,1746189042007,-400.0,0.00019452,2]
[359622182,1746189042017,-456.79,0.00019452,2]
[359622183,1746189042029,-400.0,0.00019452,2]
[359622184,1746189042039,-400.0,0.00019452,2]
[359622185,1746189042050,-537.45316603,0.00019452,2]
[359622186,1746189042060,-859.25,0.00019452,2]
[359622187,1746189042070,-400.0,0.00019452,2]
[359622188,1746189042080,-400.0,0.00019452,2]
[359622189,1746189042091,-495.89,0.00019452,2]
[359622190,1746189042100,-473.32,0.00019452,2]
[359622191,1746189042111,-1052.95,0.00019452,2]
[359622192,1746189042121,-816.47,0.00019452,2]
[359622193,1746189042131,-400.0,0.00019452,2]
[359622194,1746189042141,-378.47321506,0.00019452,2]
[359622195,1746189042151,-400.0,0.00019452,2]
[359622196,1746189042160,-400.0,0.00019452,2]
[359622197,1746189042170,-400.0,0.00019452,2]
[359622198,1746189042180,-400.0,0.00019452,2]
[359622199,1746189042190,-563.77,0.00019452,2]
[359622200,1746189042200,-1229.63,0.00019452,2]
[359622201,1746189042210,-546.06,0.00019452,2]
[359622202,1746189042221,-766.24,0.00019452,2]
[359622203,1746189042231,-538.98,0.00019452,2]
[359622204,1746189042241,-572.54,0.00019452,2]
[359622205,1746189042253,-630.71,0.00019452,2]
[359622206,1746189042263,-892.94,0.00019452,2]
[359622207,1746189042275,-400.0,0.00019452,2]
[359622208,1746189042285,-449.66585702,0.00019452,2]
[359622209,1746189042295,-400.0,0.00019452,2]
[359622210,1746189042306,-599.88,0.00019452,2]
[359622211,1746189042317,-400.0,0.00019452,2]
[359622212,1746189042327,-400.0,0.00019452,2]
[359622213,1746189042337,-400.0,0.00019452,2]
[359622214,1746189042347,-400.0,0.00019452,2]
[359622215,1746189042357,-641.22,0.00019452,2]
[359622216,1746189042367,-400.0,0.00019452,2]
[359622217,1746189042376,-400.0,0.00019452,2]
[359622218,1746189042388,-400.0,0.00019452,2]
[359622219,1746189042398,-400.0,0.00019452,2]
[359622220,1746189042408,-488.05,0.00019452,2]
[359622221,1746189042418,-400.0,0.00019452,2]
[359622222,1746189042428,-400.0,0.00019452,2]
[359622223,1746189042437,-400.0,0.00019452,2]
[359622224,1746189042447,-400.0,0.00019452,2]
[359622225,1746189042457,-400.0,0.00019452,2]
[359622226,1746189042467,-793.84,0.00019452,2]
[359622227,1746189042478,-646.88,0.00019452,2]
[359622228,1746189042488,-416.49,0.00019452,2]
[359622229,1746189042499,-437.02,0.00019452,2]
[359622230,1746189042509,-1040.56,0.00019452,2]
[359622231,1746189042520,-400.0,0.00019452,2]
[359622232,1746189042530,-400.0,0.00019452,2]
[359622233,1746189042541,-444.8,0.00019452,2]
[359622234,1746189042551,-400.0,0.00019452,2]
[359622235,1746189042562,-400.0,0.00019452,2]
[359622236,1746189042572,-400.0,0.00019452,2]
[359622237,1746189042582,-400.0,0.00019452,2]
[359622238,1746189042592,-400.0,0.00019452,2]
[359622239,1746189042602,-400.0,0.00019452,2]
[359622240,1746189042613,-164.82208254,0.00019452,2]
[359622241,1746189042623,-400.0,0.00019452,2]
[359622242,1746189042633,-400.0,0.00019452,2]
[359622243,1746189042643,-400.0,0.00019452,2]
[359622244,1746189042653,-574.89,0.00019452,2]
[359622245,1746189042663,-400.0,0.00019452,2]
[359622246,1746189042674,-400.0,0.00019452,2]
[359622247,1746189042684,-400.0,0.00019452,2]
[359622248,1746189042695,-444.82,0.00019452,2]
[359622249,1746189042706,-400.0,0.00019452,2]
[359622250,1746189042716,-500.64,0.00019452,2]
[359622251,1746189042727,-992.69,0.00019452,2]
[359622252,1746189042737,-432.33,0.00019452,2]
[359622253,1746189042748,-400.0,0.00019452,2]
[359622254,1746189042758,-400.0,0.00019452,2]
[359622255,1746189042769,-504.67,0.00019452,2]
[359622256,1746189042779,-543.38,0.00019452,2]
[359622257,1746189042790,-988.74,0.00019452,2]
[359622258,1746189042801,-400.0,0.00019452,2]
[359622259,1746189042812,-400.0,0.00019452,2]
[359622260,1746189042822,-400.0,0.00019452,2]
[359622261,1746189042833,-400.0,0.00019452,2]
[359622262,1746189042843,-400.0,0.00019452,2]
[359622263,1746189042853,-1274.19,0.00019452,2]
[359622264,1746189042863,-400.0,0.00019452,2]
[359622265,1746189042873,-400.0,0.00019452,2]
[359622266,1746189042883,-400.0,0.00019452,2]
[359622267,1746189042894,-400.0,0.00019452,2]
[359622268,1746189042905,-487.92,0.00019452,2]
[359622269,1746189042916,-400.0,0.00019452,2]
[359622270,1746189042928,-2181.89,0.00019452,2]
[359622271,1746189042939,-550.75,0.00019452,2]
[359622272,1746189042950,-562.4,0.00019452,2]
[359622273,1746189042960,-400.0,0.00019452,2]
[359622274,1746189042971,-400.0,0.00019452,2]
[359622275,1746189042982,-1361.75,0.00019452,2]
[359622276,1746189042992,-513.88,0.00019452,2]
[359622277,1746189043006,-861.56,0.00019452,2]
[359622278,1746189043017,-400.0,0.00019452,2]
[359622279,1746189043027,-930.48,0.00019452,2]
[359622280,1746189043038,-227.57968989,0.00019452,2]
[359622281,1746189043049,-615.87,0.00019452,2]
[359622282,1746189043059,-474.68,0.00019452,2]
[359622284,1746189043070,-448.08,0.00019452,2]
[359622285,1746189043081,-400.0,0.00019452,2]
[359622286,1746189043092,-400.0,0.00019452,2]
[359622287,1746189043102,-526.71,0.00019452,2]
[359622288,1746189043112,-400.0,0.00019452,2]
[359622289,1746189043123,-2045.49,0.00019452,2]
[359622290,1746189043133,-1342.95,0.00019452,2]
[359622291,1746189043143,-308.51641077,0.00019452,2]
[359622292,1746189043153,-1038.22,0.00019452,2]
[359622293,1746189043163,-894.3,0.00019452,2]
[359622294,1746189043173,-400.0,0.00019452,2]
[359622295,1746189043183,-400.0,0.00019452,2]
[359622296,1746189043193,-759.21,0.00019452,2]
[359622297,1746189043203,-527.97,0.00019452,2]
[359622298,1746189043213,-708.46,0.00019452,2]
[359622299,1746189043223,-400.0,0.00019452,2]
[359622300,1746189043232,-2269.91,0.00019452,2]
[359622301,1746189043242,-2021.3,0.00019452,2]
[359622302,1746189043254,-1297.34,0.00019452,2]
[359622303,1746189043264,-400.0,0.00019452,2]
[359622304,1746189043276,-400.0,0.00019452,2]
[359622305,1746189043286,-1836.15,0.00019452,2]
[359622306,1746189043297,-400.0,0.00019452,2]
[359622307,1746189043308,-400.0,0.00019452,2]
[359622308,1746189043319,-400.0,0.00019452,2]
[359622309,1746189043329,-1037.51,0.00019452,2]
[359622310,1746189043339,-458.13,0.00019452,2]
[359622311,1746189043348,-552.0,0.00019452,2]
[359622312,1746189043358,-4838.31,0.00019452,2]
[359622313,1746189043368,-400.0,0.00019452,2]
[359622314,1746189043379,-883.25,0.00019452,2]
[359622315,1746189043389,-4238.87,0.00019452,2]
[359622316,1746189043399,-400.0,0.00019452,2]
[359622317,1746189043408,-538.69,0.00019452,2]
[359622318,1746189043418,-400.0,0.00019452,2]
[359622319,1746189043429,-401.53,0.00019452,2]
[359622320,1746189043439,-781.45,0.00019452,2]
[359622321,1746189043450,-400.0,0.00019452,2]
[359622322,1746189043460,-1785.89,0.00019452,2]
[359622323,1746189043469,-589.69,0.00019452,2]
[359622324,1746189043479,-1116.06,0.00019452,2]
[359622325,1746189043489,-486.3,0.00019452,2]
[359622326,1746189043501,-2242.22,0.00019452,2]
[359622327,1746189043511,-400.0,0.00019452,2]
[359622328,1746189043521,-400.0,0.00019452,2]
[359622329,1746189043532,-400.0,0.00019452,2]
[359622330,1746189043542,-400.0,0.00019452,2]
[359622331,1746189043552,-400.0,0.00019452,2]
[359622332,1746189043562,-2337.65,0.00019452,2]
[359622333,1746189043573,-400.0,0.00019452,2]
[359622334,1746189043583,-2016.62,0.00019452,2]
[359622336,1746189043594,-400.0,0.00019452,2]
[359622337,1746189043604,-667.02,0.00019452,2]
[359622339,1746189043615,-475.96,0.00019452,2]
[359622340,1746189043625,-906.33,0.00019452,2]
[359622341,1746189043636,-581.79,0.00019452,2]
[359622342,1746189043647,-411.78,0.00019452,2]
[359622343,1746189043657,-400.0,0.00019452,2]
[359622344,1746189043668,-400.0,0.00019452,2]
[359622346,1746189043678,-400.0,0.00019452,2]
[359622353,1746189043922,-1222.5,0.00019452,2]
[359622354,1746189043932,-400.0,0.00019452,2]
[359622355,1746189043943,-400.0,0.00019452,2]
[359622356,1746189043952,-400.0,0.00019452,2]
[359622357,1746189043963,-400.0,0.00019452,2]
[359622358,1746189043973,-500.0,0.00019452,2]
[359622359,1746189043982,-400.0,0.00019452,2]
[359622360,1746189043992,-348.60706056,0.00019452,2]
[359622361,1746189044014,-397.14293944,0.00019452,2]
[359622362,1746189044024,-1788.85,0.00019452,2]
[359622364,1746189044035,-472.15,0.00019452,2]
[359622366,1746189044044,-1322.26,0.00019452,2]
[359622368,1746189044054,-400.0,0.00019452,2]
[359622370,1746189044064,-400.0,0.00019452,2]
[359622372,1746189044074,-1985.53,0.00019452,2]
[359622374,1746189044084,-2250.14,0.00019452,2]
[359622376,1746189044094,-400.0,0.00019452,2]
[359622378,1746189044103,-1328.58,0.00019452,2]
[359622380,1746189044113,-921.29,0.00019452,2]
[359622382,1746189044123,-538.34,0.00019452,2]
[359622384,1746189044133,-1751.16,0.00019452,2]
[359622387,1746189044143,-502.26,0.00019452,2]
[359622389,1746189044153,-2271.98,0.00019452,2]
[359622391,1746189044163,-400.0,0.00019452,2]
[359622393,1746189044172,-5937.16,0.00019452,2]
[359622395,1746189044182,-2482.0,0.00019452,2]
[359622397,1746189044192,-2424.16,0.00019452,2]
[359622399,1746189044202,-400.0,0.00019452,2]
[359622401,1746189044212,-684.99,0.00019452,2]
[359622403,1746189044222,-501.1,0.00019452,2]
[359622405,1746189044231,-400.0,0.00019452,2]
[359622407,1746189044242,-400.0,0.00019452,2]
[359622409,1746189044254,-1227.55,0.00019452,2]
[359622411,1746189044265,-898.47,0.00019452,2]
[359622413,1746189044283,-4308.81,0.00019452,2]
[359622415,1746189044294,-589.99,0.00019452,2]
[359622417,1746189044309,-649.78,0.00019452,2]
[359622419,1746189044320,-621.88,0.00019452,2]
[359622421,1746189044331,-267.96174872,0.00019452,2]
[359622423,1746189044341,-400.0,0.00019452,2]
[359622425,1746189044351,-1554.63,0.00019452,2]
[359622427,1746189044361,-400.0,0.00019452,2]
[359622429,1746189044371,-549.99,0.00019452,2]
[359622431,1746189044380,-2022.45,0.00019452,2]
[359622433,1746189044390,-1654.82,0.00019452,2]
[359622435,1746189044400,-359.60589926,0.00019452,2]
[359622437,1746189044410,-887.45,0.00019452,2]
[359622439,1746189044420,-400.0,0.00019452,2]
[359622441,1746189044430,-1613.86,0.00019452,2]
[359622443,1746189044439,-509.44,0.00019452,2]
[359622445,1746189044450,-1452.32,0.00019452,2]
[359622447,1746189044460,-724.19,0.00019452,2]
[359622449,1746189044470,-558.02,0.00019452,2]
[359622452,1746189044480,-400.0,0.00019452,2]
[359622454,1746189044490,-400.0,0.00019452,2]
[359622456,1746189044502,-400.0,0.00019452,2]
[359622459,1746189044512,-400.0,0.00019452,2]
[359622461,1746189044522,-522.57354578,0.00019452,2]
[359622463,1746189044532,-501.51,0.00019452,2]
[359622465,1746189044542,-400.0,0.00019452,2]
[359622467,1746189044551,-500.0,0.00019452,2]
[359622469,1746189044561,-400.0,0.00019452,2]
[359622471,1746189044571,-768.56,0.00019452,2]
[359622473,1746189044580,-502.47,0.00019452,2]
[359622475,1746189044590,-400.0,0.00019452,2]
[359622477,1746189044599,-400.0,0.00019452,2]
[359622479,1746189044610,-657.22,0.00019452,2]
[359622481,1746189044620,-978.78,0.00019452,2]
[359622483,1746189044630,-400.0,0.00019452,2]
[359622485,1746189044640,-400.0,0.00019452,2]
[359622487,1746189044650,-400.0,0.00019452,2]
[359622489,1746189044660,-400.0,0.00019452,2]
[359622491,1746189044670,-12838.06,0.00019452,2]
[359622493,1746189044680,-640.79851168,0.00019473,2]
[359622495,1746189044690,-500.78659211,0.00019473,2]
[359622498,1746189044700,-451.00035388,0.00019473,2]
[359622500,1746189044711,-500.0,0.00019473,2]
[359622502,1746189044721,-500.0,0.00019473,2]
[359622504,1746189044731,-510.70763914,0.00019473,2]
[359622506,1746189044741,-500.0,0.00019473,2]
[359622508,1746189044752,-492.51689695,0.00019473,2]